Workbook

Sheet Test Score Input
E1: -3 sd | F1: -2 sd | G1: -1 sd | H1: mean | I1: +1 sd | J1: +2 sd | K1: +3 sd
B2: Metric1: | C2: Standard Scores | D2: (m =100, s.d. = 15) | E2: 55 | F2: 70 | G2: 85 | H2: 100 | I2: 115 | J2: 130 | K2: 145
B3: Metric2: | C3: T Scores | D3: (m = 50, s.d. = 10) | E3: 20 | F3: 30 | G3: 40 | H3: 50 | I3: 60 | J3: 70 | K3: 80
B4: Metric3: | C4: Scaled Scores | D4: (m = 10, s.d. = 3) | E4: 1 | F4: 4 | G4: 7 | H4: 10 | I4: 13 | J4: 16 | K4: 19
B5: Metric4: | C5: Binet Composites | D5: (m = 100, s.d. = 16) | E5: 52 | F5: 68 | G5: 84 | H5: 100 | I5: 116 | J5: 132 | K5: 158
B6: Metric5: | C6: Binet SASs | D6: (m = 50, s.d. = 8) | E6: 26 | F6: 34 | G6: 42 | H6: 50 | I6: 58 | J6: 66 | K6: 74
B7: Metric6: | C7: Stanines | D7: (m = 5, s.d. = 1.96) | F7: 1.08 | G7: 3.04 | H7: 5 | I7: 6.96 | J7: 8.92
B8: Metric7: | C8: NCEs | D8: (m = 50, s.d. = 21.06) | F8: 7.88 | G8: 28.94 | H8: 50 | I8: 71.06 | J8: 92.12
C10: Test | E10: Score | F10: Metric | G10: Converted
B11: 1 | C11: IVA | F11: 1 | G11: =IF(F11=1,E11,IF(F11=2,ROUND((15*((E11-50)/10))+100,0),IF(F11=3,ROUND((15*((E11-10)/3))+100,0),IF(F11=4,ROUND((15*((E11-100)/16))+100,0),IF(F11=5,ROUND((15*((E11-50)/8))+100,0),IF(F11=6,ROUND((15*((E11-5)/1.96))+100,0),IF(F11=7,ROUND((15*((E11-50)/21.06))+100,0),""))))))) -> 0 | H11: Steps for template
B12: =B11+1 -> 2 | C12: FS Response | E12: 99 | F12: 1 | G12: =IF(F12=1,E12,IF(F12=2,ROUND((15*((E12-50)/10))+100,0),IF(F12=3,ROUND((15*((E12-10)/3))+100,0),IF(F12=4,ROUND((15*((E12-100)/16))+100,0),IF(F12=5,ROUND((15*((E12-50)/8))+100,0),IF(F12=6,ROUND((15*((E12-5)/1.96))+100,0),IF(F12=7,ROUND((15*((E12-50)/21.06))+100,0),""))))))) -> 99
B13: =B12+1 -> 3 | C13: FS Attention | E13: 70 | F13: 1 | G13: 70 | H13: 1. Enter the name of the test, cluster or subtest
B14: 4 | F14: 1 | G14: 0 | H14: 2. Enter the score obtained
B15: 5 | C15: WJ III Ach | F15: 1 | G15: 0 | H15: 3. Choose the metric for the score (i.e. 1 through 7)
B16: 6 | C16: LWI | E16: 81 | F16: 1 | G16: 81
B17: 7 | C17: WA | E17: 93 | F17: 1 | G17: 93 | H17: The template converts each score to a common metric
B18: 8 | C18: Cal | E18: 93 | F18: 1 | G18: 93 | H18: with a mean of 100 and a standard deviation of 15.
B19: 9 | C19: MF | E19: 82 | F19: 1 | G19: 82
B20: 10 | C20: Sp | E20: 74 | F20: 1 | G20: 74 | H20: The template automatically plots the converted scores
B21: 11 | C21: PC | E21: 86 | F21: 1 | G21: 86 | H21: onto a chart. Press the "Score Plot" tab to see results.
B22: 12 | C22: Aprob | E22: 114 | F22: 1 | G22: 114
B23: 13 | C23: WS | E23: 89 | F23: 1 | G23: 89
B24: 14 | F24: 1 | G24: 0
B25: 15 | C25: Gray | F25: 1 | G25: 0
B26: 16 | C26: Acc | E26: 5 | F26: 3 | G26: 75
B27: 17 | C27: Rate | E27: 5 | F27: 3 | G27: 75
B28: 18 | C28: Comp | E28: 12 | F28: 3 | G28: 110
B29: 19 | F29: 1 | G29: 0
B30: 20 | C30: Reynold Depression | E30: 100 | F30: 1 | G30: 100
B31: 21 | F31: 1 | G31: 0
B32: 22 | C32: MASC | E32: 45 | F32: 2 | G32: 93
B33: 23 | F33: 1 | G33: 0
B34: 24 | C34: CBCL | F34: 1 | G34: 0
B35: 25 | C35: Total | E35: 58 | F35: 2 | G35: 112
B36: 26 | C36: Anxious | E36: 62 | F36: 2 | G36: 118
B37: 27 | C37: Withdrawn | E37: 54 | F37: 2 | G37: 106
B38: 28 | C38: Somatic | E38: 53 | F38: 2 | G38: 105
B39: =B38+1 -> 29 | C39: Social | E39: 62 | F39: 2 | G39: =IF(F39=1,E39,IF(F39=2,ROUND((15*((E39-50)/10))+100,0),IF(F39=3,ROUND((15*((E39-10)/3))+100,0),IF(F39=4,ROUND((15*((E39-100)/16))+100,0),IF(F39=5,ROUND((15*((E39-50)/8))+100,0),IF(F39=6,ROUND((15*((E39-5)/1.96))+100,0),IF(F39=7,ROUND((15*((E39-50)/21.06))+100,0),""))))))) -> 118
B40: 30 | C40: Thought | E40: 64 | F40: 2 | G40: 121
B41: 31 | C41: Attention | E41: 51 | F41: 2 | G41: 102
B42: 32 | C42: Rule | E42: 53 | F42: 2 | G42: 105
B43: 33 | C43: Aggressive | E43: 61 | F43: 2 | G43: 117
B44: 34 | C44: DSM IV | E44: 65 | F44: 2 | G44: 123
B45: 35 | F45: 1 | G45: 0

Sheet Score Plot (ranges)
B103: Test | C103: Score | F103: original
B104: =IF('Test Score Input'!C11="","x",'Test Score Input'!C11&" (score= "&F104&")") -> IVA (score= ) | C104: =IF('Test Score Input'!G11="",40,'Test Score Input'!G11-5) -> -5 | D104: 10 | E104: =160-(C104+D104) -> 155 | F104: =IF('Test Score Input'!E11="","",'Test Score Input'!E11) -> 
B105: =IF('Test Score Input'!C12="","x",'Test Score Input'!C12&" (score= "&F105&")") -> FS Response (score= 99) | C105: =IF('Test Score Input'!G12="",40,'Test Score Input'!G12-5) -> 94 | D105: 10 | E105: =160-(C105+D105) -> 56 | F105: =IF('Test Score Input'!E12="","",'Test Score Input'!E12) -> 99
B106: =IF('Test Score Input'!C13="","x",'Test Score Input'!C13&" (score= "&F106&")") -> FS Attention (score= 70) | C106: =IF('Test Score Input'!G13="",40,'Test Score Input'!G13-5) -> 65 | D106: 10 | E106: 85 | F106: =IF('Test Score Input'!E13="","",'Test Score Input'!E13) -> 70
B107: =IF('Test Score Input'!C14="","x",'Test Score Input'!C14&" (score= "&F107&")") -> x | C107: =IF('Test Score Input'!G14="",40,'Test Score Input'!G14-5) -> -5 | D107: 10 | E107: 155 | F107: =IF('Test Score Input'!E14="","",'Test Score Input'!E14) -> 
B108: =IF('Test Score Input'!C15="","x",'Test Score Input'!C15&" (score= "&F108&")") -> WJ III Ach (score= ) | C108: =IF('Test Score Input'!G15="",40,'Test Score Input'!G15-5) -> -5 | D108: 10 | E108: 155 | F108: =IF('Test Score Input'!E15="","",'Test Score Input'!E15) -> 
B109: =IF('Test Score Input'!C16="","x",'Test Score Input'!C16&" (score= "&F109&")") -> LWI (score= 81) | C109: =IF('Test Score Input'!G16="",40,'Test Score Input'!G16-5) -> 76 | D109: 10 | E109: 74 | F109: =IF('Test Score Input'!E16="","",'Test Score Input'!E16) -> 81
B110: =IF('Test Score Input'!C17="","x",'Test Score Input'!C17&" (score= "&F110&")") -> WA (score= 93) | C110: =IF('Test Score Input'!G17="",40,'Test Score Input'!G17-5) -> 88 | D110: 10 | E110: 62 | F110: =IF('Test Score Input'!E17="","",'Test Score Input'!E17) -> 93
B111: =IF('Test Score Input'!C18="","x",'Test Score Input'!C18&" (score= "&F111&")") -> Cal (score= 93) | C111: =IF('Test Score Input'!G18="",40,'Test Score Input'!G18-5) -> 88 | D111: 10 | E111: 62 | F111: =IF('Test Score Input'!E18="","",'Test Score Input'!E18) -> 93
B112: =IF('Test Score Input'!C19="","x",'Test Score Input'!C19&" (score= "&F112&")") -> MF (score= 82) | C112: =IF('Test Score Input'!G19="",40,'Test Score Input'!G19-5) -> 77 | D112: 10 | E112: 73 | F112: =IF('Test Score Input'!E19="","",'Test Score Input'!E19) -> 82
B113: =IF('Test Score Input'!C20="","x",'Test Score Input'!C20&" (score= "&F113&")") -> Sp (score= 74) | C113: =IF('Test Score Input'!G20="",40,'Test Score Input'!G20-5) -> 69 | D113: 10 | E113: 81 | F113: =IF('Test Score Input'!E20="","",'Test Score Input'!E20) -> 74
B114: =IF('Test Score Input'!C21="","x",'Test Score Input'!C21&" (score= "&F114&")") -> PC (score= 86) | C114: =IF('Test Score Input'!G21="",40,'Test Score Input'!G21-5) -> 81 | D114: 10 | E114: 69 | F114: =IF('Test Score Input'!E21="","",'Test Score Input'!E21) -> 86
B115: =IF('Test Score Input'!C22="","x",'Test Score Input'!C22&" (score= "&F115&")") -> Aprob (score= 114) | C115: =IF('Test Score Input'!G22="",40,'Test Score Input'!G22-5) -> 109 | D115: 10 | E115: 41 | F115: =IF('Test Score Input'!E22="","",'Test Score Input'!E22) -> 114
B116: =IF('Test Score Input'!C23="","x",'Test Score Input'!C23&" (score= "&F116&")") -> WS (score= 89) | C116: =IF('Test Score Input'!G23="",40,'Test Score Input'!G23-5) -> 84 | D116: 10 | E116: 66 | F116: =IF('Test Score Input'!E23="","",'Test Score Input'!E23) -> 89
B117: =IF('Test Score Input'!C24="","x",'Test Score Input'!C24&" (score= "&F117&")") -> x | C117: =IF('Test Score Input'!G24="",40,'Test Score Input'!G24-5) -> -5 | D117: 10 | E117: 155 | F117: =IF('Test Score Input'!E24="","",'Test Score Input'!E24) -> 
B118: =IF('Test Score Input'!C25="","x",'Test Score Input'!C25&" (score= "&F118&")") -> Gray (score= ) | C118: =IF('Test Score Input'!G25="",40,'Test Score Input'!G25-5) -> -5 | D118: 10 | E118: 155 | F118: =IF('Test Score Input'!E25="","",'Test Score Input'!E25) -> 
B119: =IF('Test Score Input'!C26="","x",'Test Score Input'!C26&" (score= "&F119&")") -> Acc (score= 5) | C119: =IF('Test Score Input'!G26="",40,'Test Score Input'!G26-5) -> 70 | D119: 10 | E119: 80 | F119: =IF('Test Score Input'!E26="","",'Test Score Input'!E26) -> 5
B120: =IF('Test Score Input'!C27="","x",'Test Score Input'!C27&" (score= "&F120&")") -> Rate (score= 5) | C120: =IF('Test Score Input'!G27="",40,'Test Score Input'!G27-5) -> 70 | D120: 10 | E120: 80 | F120: =IF('Test Score Input'!E27="","",'Test Score Input'!E27) -> 5
B121: =IF('Test Score Input'!C28="","x",'Test Score Input'!C28&" (score= "&F121&")") -> Comp (score= 12) | C121: =IF('Test Score Input'!G28="",40,'Test Score Input'!G28-5) -> 105 | D121: 10 | E121: 45 | F121: =IF('Test Score Input'!E28="","",'Test Score Input'!E28) -> 12
B122: =IF('Test Score Input'!C29="","x",'Test Score Input'!C29&" (score= "&F122&")") -> x | C122: =IF('Test Score Input'!G29="",40,'Test Score Input'!G29-5) -> -5 | D122: 10 | E122: =160-(C122+D122) -> 155 | F122: =IF('Test Score Input'!E29="","",'Test Score Input'!E29) -> 
B123: =IF('Test Score Input'!C30="","x",'Test Score Input'!C30&" (score= "&F123&")") -> Reynold Depression (score= 100) | C123: =IF('Test Score Input'!G30="",40,'Test Score Input'!G30-5) -> 95 | D123: 10 | E123: 55 | F123: =IF('Test Score Input'!E30="","",'Test Score Input'!E30) -> 100
B124: =IF('Test Score Input'!C31="","x",'Test Score Input'!C31&" (score= "&F124&")") -> x | C124: =IF('Test Score Input'!G31="",40,'Test Score Input'!G31-5) -> -5 | D124: 10 | E124: 155 | F124: =IF('Test Score Input'!E31="","",'Test Score Input'!E31) -> 
B125: =IF('Test Score Input'!C32="","x",'Test Score Input'!C32&" (score= "&F125&")") -> MASC (score= 45) | C125: =IF('Test Score Input'!G32="",40,'Test Score Input'!G32-5) -> 88 | D125: 10 | E125: 62 | F125: =IF('Test Score Input'!E32="","",'Test Score Input'!E32) -> 45
B126: =IF('Test Score Input'!C33="","x",'Test Score Input'!C33&" (score= "&F126&")") -> x | C126: =IF('Test Score Input'!G33="",40,'Test Score Input'!G33-5) -> -5 | D126: 10 | E126: 155 | F126: =IF('Test Score Input'!E33="","",'Test Score Input'!E33) -> 
B127: =IF('Test Score Input'!C34="","x",'Test Score Input'!C34&" (score= "&F127&")") -> CBCL (score= ) | C127: =IF('Test Score Input'!G34="",40,'Test Score Input'!G34-5) -> -5 | D127: 10 | E127: 155 | F127: =IF('Test Score Input'!E34="","",'Test Score Input'!E34) -> 
B128: =IF('Test Score Input'!C35="","x",'Test Score Input'!C35&" (score= "&F128&")") -> Total (score= 58) | C128: =IF('Test Score Input'!G35="",40,'Test Score Input'!G35-5) -> 107 | D128: 10 | E128: 43 | F128: =IF('Test Score Input'!E35="","",'Test Score Input'!E35) -> 58
B129: =IF('Test Score Input'!C36="","x",'Test Score Input'!C36&" (score= "&F129&")") -> Anxious (score= 62) | C129: =IF('Test Score Input'!G36="",40,'Test Score Input'!G36-5) -> 113 | D129: 10 | E129: 37 | F129: =IF('Test Score Input'!E36="","",'Test Score Input'!E36) -> 62
B130: =IF('Test Score Input'!C37="","x",'Test Score Input'!C37&" (score= "&F130&")") -> Withdrawn (score= 54) | C130: =IF('Test Score Input'!G37="",40,'Test Score Input'!G37-5) -> 101 | D130: 10 | E130: 49 | F130: =IF('Test Score Input'!E37="","",'Test Score Input'!E37) -> 54
B131: =IF('Test Score Input'!C38="","x",'Test Score Input'!C38&" (score= "&F131&")") -> Somatic (score= 53) | C131: =IF('Test Score Input'!G38="",40,'Test Score Input'!G38-5) -> 100 | D131: 10 | E131: 50 | F131: =IF('Test Score Input'!E38="","",'Test Score Input'!E38) -> 53
B132: =IF('Test Score Input'!C39="","x",'Test Score Input'!C39&" (score= "&F132&")") -> Social (score= 62) | C132: =IF('Test Score Input'!G39="",40,'Test Score Input'!G39-5) -> 113 | D132: 10 | E132: 37 | F132: =IF('Test Score Input'!E39="","",'Test Score Input'!E39) -> 62
B133: =IF('Test Score Input'!C40="","x",'Test Score Input'!C40&" (score= "&F133&")") -> Thought (score= 64) | C133: =IF('Test Score Input'!G40="",40,'Test Score Input'!G40-5) -> 116 | D133: 10 | E133: 34 | F133: =IF('Test Score Input'!E40="","",'Test Score Input'!E40) -> 64
B134: =IF('Test Score Input'!C41="","x",'Test Score Input'!C41&" (score= "&F134&")") -> Attention (score= 51) | C134: =IF('Test Score Input'!G41="",40,'Test Score Input'!G41-5) -> 97 | D134: 10 | E134: 53 | F134: =IF('Test Score Input'!E41="","",'Test Score Input'!E41) -> 51
B135: =IF('Test Score Input'!C42="","x",'Test Score Input'!C42&" (score= "&F135&")") -> Rule (score= 53) | C135: =IF('Test Score Input'!G42="",40,'Test Score Input'!G42-5) -> 100 | D135: 10 | E135: 50 | F135: =IF('Test Score Input'!E42="","",'Test Score Input'!E42) -> 53
B136: =IF('Test Score Input'!C43="","x",'Test Score Input'!C43&" (score= "&F136&")") -> Aggressive (score= 61) | C136: =IF('Test Score Input'!G43="",40,'Test Score Input'!G43-5) -> 112 | D136: 10 | E136: 38 | F136: =IF('Test Score Input'!E43="","",'Test Score Input'!E43) -> 61
B137: =IF('Test Score Input'!C44="","x",'Test Score Input'!C44&" (score= "&F137&")") -> DSM IV (score= 65) | C137: =IF('Test Score Input'!G44="",40,'Test Score Input'!G44-5) -> 118 | D137: 10 | E137: 32 | F137: =IF('Test Score Input'!E44="","",'Test Score Input'!E44) -> 65
B138: =IF('Test Score Input'!C45="","x",'Test Score Input'!C45&" (score= "&F138&")") -> x | C138: =IF('Test Score Input'!G45="",40,'Test Score Input'!G45-5) -> -5 | D138: 10 | E138: 155 | F138: =IF('Test Score Input'!E45="","",'Test Score Input'!E45) -> 
B139: =IF('Test Score Input'!C46="","x",'Test Score Input'!C46&" (score= "&F139&")") -> x | C139: =IF('Test Score Input'!G46="",40,'Test Score Input'!G46-5) -> 40 | D139: 10 | E139: =160-(C139+D139) -> 110 | F139: =IF('Test Score Input'!E46="","",'Test Score Input'!E46) -> 
B140: =IF('Test Score Input'!C47="","x",'Test Score Input'!C47&" (score= "&F140&")") -> x | C140: =IF('Test Score Input'!G47="",40,'Test Score Input'!G47-5) -> 40 | D140: =IF('Test Score Input'!E47="","",'Test Score Input'!E47) -> 
B141: =IF('Test Score Input'!C48="","x",'Test Score Input'!C48&" (score= "&F141&")") -> x | C141: =IF('Test Score Input'!G48="",40,'Test Score Input'!G48) -> 40 | D141: =IF('Test Score Input'!E48="","",'Test Score Input'!E48) -> 
A148: 1 | B148: 3 | C148: 9 | D148: 22 | E148: 50 | F148: 68 | G148: 76 | H148: 68 | I148: 50 | J148: 22 | K148: 9 | L148: 3 | M148: 1

Sheet Score Plot (bars)
B103: Test | C103: Score | D103: original
B104: =IF('Test Score Input'!C11="","x",'Test Score Input'!C11&" (score= "&D104&")") -> IVA (score= ) | C104: =IF('Test Score Input'!G11="",40,'Test Score Input'!G11) -> 0 | D104: =IF('Test Score Input'!E11="","",'Test Score Input'!E11) -> 
B105: =IF('Test Score Input'!C12="","x",'Test Score Input'!C12&" (score= "&D105&")") -> FS Response (score= 99) | C105: =IF('Test Score Input'!G12="",40,'Test Score Input'!G12) -> 99 | D105: =IF('Test Score Input'!E12="","",'Test Score Input'!E12) -> 99
B106: =IF('Test Score Input'!C13="","x",'Test Score Input'!C13&" (score= "&D106&")") -> FS Attention (score= 70) | C106: =IF('Test Score Input'!G13="",40,'Test Score Input'!G13) -> 70 | D106: =IF('Test Score Input'!E13="","",'Test Score Input'!E13) -> 70
B107: =IF('Test Score Input'!C14="","x",'Test Score Input'!C14&" (score= "&D107&")") -> x | C107: =IF('Test Score Input'!G14="",40,'Test Score Input'!G14) -> 0 | D107: =IF('Test Score Input'!E14="","",'Test Score Input'!E14) -> 
B108: =IF('Test Score Input'!C15="","x",'Test Score Input'!C15&" (score= "&D108&")") -> WJ III Ach (score= ) | C108: =IF('Test Score Input'!G15="",40,'Test Score Input'!G15) -> 0 | D108: =IF('Test Score Input'!E15="","",'Test Score Input'!E15) -> 
B109: =IF('Test Score Input'!C16="","x",'Test Score Input'!C16&" (score= "&D109&")") -> LWI (score= 81) | C109: =IF('Test Score Input'!G16="",40,'Test Score Input'!G16) -> 81 | D109: =IF('Test Score Input'!E16="","",'Test Score Input'!E16) -> 81
B110: =IF('Test Score Input'!C17="","x",'Test Score Input'!C17&" (score= "&D110&")") -> WA (score= 93) | C110: =IF('Test Score Input'!G17="",40,'Test Score Input'!G17) -> 93 | D110: =IF('Test Score Input'!E17="","",'Test Score Input'!E17) -> 93
B111: =IF('Test Score Input'!C18="","x",'Test Score Input'!C18&" (score= "&D111&")") -> Cal (score= 93) | C111: =IF('Test Score Input'!G18="",40,'Test Score Input'!G18) -> 93 | D111: =IF('Test Score Input'!E18="","",'Test Score Input'!E18) -> 93
B112: =IF('Test Score Input'!C19="","x",'Test Score Input'!C19&" (score= "&D112&")") -> MF (score= 82) | C112: =IF('Test Score Input'!G19="",40,'Test Score Input'!G19) -> 82 | D112: =IF('Test Score Input'!E19="","",'Test Score Input'!E19) -> 82
B113: =IF('Test Score Input'!C20="","x",'Test Score Input'!C20&" (score= "&D113&")") -> Sp (score= 74) | C113: =IF('Test Score Input'!G20="",40,'Test Score Input'!G20) -> 74 | D113: =IF('Test Score Input'!E20="","",'Test Score Input'!E20) -> 74
B114: =IF('Test Score Input'!C21="","x",'Test Score Input'!C21&" (score= "&D114&")") -> PC (score= 86) | C114: =IF('Test Score Input'!G21="",40,'Test Score Input'!G21) -> 86 | D114: =IF('Test Score Input'!E21="","",'Test Score Input'!E21) -> 86
B115: =IF('Test Score Input'!C22="","x",'Test Score Input'!C22&" (score= "&D115&")") -> Aprob (score= 114) | C115: =IF('Test Score Input'!G22="",40,'Test Score Input'!G22) -> 114 | D115: =IF('Test Score Input'!E22="","",'Test Score Input'!E22) -> 114
B116: =IF('Test Score Input'!C23="","x",'Test Score Input'!C23&" (score= "&D116&")") -> WS (score= 89) | C116: =IF('Test Score Input'!G23="",40,'Test Score Input'!G23) -> 89 | D116: =IF('Test Score Input'!E23="","",'Test Score Input'!E23) -> 89
B117: =IF('Test Score Input'!C24="","x",'Test Score Input'!C24&" (score= "&D117&")") -> x | C117: =IF('Test Score Input'!G24="",40,'Test Score Input'!G24) -> 0 | D117: =IF('Test Score Input'!E24="","",'Test Score Input'!E24) -> 
B118: =IF('Test Score Input'!C25="","x",'Test Score Input'!C25&" (score= "&D118&")") -> Gray (score= ) | C118: =IF('Test Score Input'!G25="",40,'Test Score Input'!G25) -> 0 | D118: =IF('Test Score Input'!E25="","",'Test Score Input'!E25) -> 
B119: =IF('Test Score Input'!C26="","x",'Test Score Input'!C26&" (score= "&D119&")") -> Acc (score= 5) | C119: =IF('Test Score Input'!G26="",40,'Test Score Input'!G26) -> 75 | D119: =IF('Test Score Input'!E26="","",'Test Score Input'!E26) -> 5
B120: =IF('Test Score Input'!C27="","x",'Test Score Input'!C27&" (score= "&D120&")") -> Rate (score= 5) | C120: =IF('Test Score Input'!G27="",40,'Test Score Input'!G27) -> 75 | D120: =IF('Test Score Input'!E27="","",'Test Score Input'!E27) -> 5
B121: =IF('Test Score Input'!C28="","x",'Test Score Input'!C28&" (score= "&D121&")") -> Comp (score= 12) | C121: =IF('Test Score Input'!G28="",40,'Test Score Input'!G28) -> 110 | D121: =IF('Test Score Input'!E28="","",'Test Score Input'!E28) -> 12
B122: =IF('Test Score Input'!C29="","x",'Test Score Input'!C29&" (score= "&D122&")") -> x | C122: =IF('Test Score Input'!G29="",40,'Test Score Input'!G29) -> 0 | D122: =IF('Test Score Input'!E29="","",'Test Score Input'!E29) -> 
B123: =IF('Test Score Input'!#REF!="","x",'Test Score Input'!#REF!&" (score= "&D123&")") ->  | C123: =IF('Test Score Input'!G30="",40,'Test Score Input'!G30) -> 100 | D123: =IF('Test Score Input'!E30="","",'Test Score Input'!E30) -> 100
B124: =IF('Test Score Input'!C31="","x",'Test Score Input'!C31&" (score= "&D124&")") -> x | C124: =IF('Test Score Input'!G31="",40,'Test Score Input'!G31) -> 0 | D124: =IF('Test Score Input'!E31="","",'Test Score Input'!E31) -> 
B125: =IF('Test Score Input'!C30="","x",'Test Score Input'!C30&" (score= "&D125&")") -> Reynold Depression (score= 45) | C125: =IF('Test Score Input'!G32="",40,'Test Score Input'!G32) -> 93 | D125: =IF('Test Score Input'!E32="","",'Test Score Input'!E32) -> 45
B126: =IF('Test Score Input'!C33="","x",'Test Score Input'!C33&" (score= "&D126&")") -> x | C126: =IF('Test Score Input'!G33="",40,'Test Score Input'!G33) -> 0 | D126: =IF('Test Score Input'!E33="","",'Test Score Input'!E33) -> 
B127: =IF('Test Score Input'!C32="","x",'Test Score Input'!C32&" (score= "&D127&")") -> MASC (score= ) | C127: =IF('Test Score Input'!G34="",40,'Test Score Input'!G34) -> 0 | D127: =IF('Test Score Input'!E34="","",'Test Score Input'!E34) -> 
B128: =IF('Test Score Input'!#REF!="","x",'Test Score Input'!#REF!&" (score= "&D128&")") ->  | C128: =IF('Test Score Input'!G35="",40,'Test Score Input'!G35) -> 112 | D128: =IF('Test Score Input'!E35="","",'Test Score Input'!E35) -> 58
B129: =IF('Test Score Input'!C34="","x",'Test Score Input'!C34&" (score= "&D129&")") -> CBCL (score= 62) | C129: =IF('Test Score Input'!G36="",40,'Test Score Input'!G36) -> 118 | D129: =IF('Test Score Input'!E36="","",'Test Score Input'!E36) -> 62
B130: =IF('Test Score Input'!C35="","x",'Test Score Input'!C35&" (score= "&D130&")") -> Total (score= 54) | C130: =IF('Test Score Input'!G37="",40,'Test Score Input'!G37) -> 106 | D130: =IF('Test Score Input'!E37="","",'Test Score Input'!E37) -> 54
B131: =IF('Test Score Input'!C36="","x",'Test Score Input'!C36&" (score= "&D131&")") -> Anxious (score= 53) | C131: =IF('Test Score Input'!G38="",40,'Test Score Input'!G38) -> 105 | D131: =IF('Test Score Input'!E38="","",'Test Score Input'!E38) -> 53
B132: =IF('Test Score Input'!C38="","x",'Test Score Input'!C38&" (score= "&D132&")") -> Somatic (score= 62) | C132: =IF('Test Score Input'!G39="",40,'Test Score Input'!G39) -> 118 | D132: =IF('Test Score Input'!E39="","",'Test Score Input'!E39) -> 62
B133: =IF('Test Score Input'!C40="","x",'Test Score Input'!C40&" (score= "&D133&")") -> Thought (score= 64) | C133: =IF('Test Score Input'!G40="",40,'Test Score Input'!G40) -> 121 | D133: =IF('Test Score Input'!E40="","",'Test Score Input'!E40) -> 64
B134: =IF('Test Score Input'!C41="","x",'Test Score Input'!C41&" (score= "&D134&")") -> Attention (score= 51) | C134: =IF('Test Score Input'!G41="",40,'Test Score Input'!G41) -> 102 | D134: =IF('Test Score Input'!E41="","",'Test Score Input'!E41) -> 51
B135: =IF('Test Score Input'!#REF!="","x",'Test Score Input'!#REF!&" (score= "&D135&")") ->  | C135: =IF('Test Score Input'!G42="",40,'Test Score Input'!G42) -> 105 | D135: =IF('Test Score Input'!E42="","",'Test Score Input'!E42) -> 53
B136: =IF('Test Score Input'!#REF!="","x",'Test Score Input'!#REF!&" (score= "&D136&")") ->  | C136: =IF('Test Score Input'!G43="",40,'Test Score Input'!G43) -> 117 | D136: =IF('Test Score Input'!E43="","",'Test Score Input'!E43) -> 61
B137: =IF('Test Score Input'!C42="","x",'Test Score Input'!C42&" (score= "&D137&")") -> Rule (score= 65) | C137: =IF('Test Score Input'!G44="",40,'Test Score Input'!G44) -> 123 | D137: =IF('Test Score Input'!E44="","",'Test Score Input'!E44) -> 65
B138: =IF('Test Score Input'!C43="","x",'Test Score Input'!C43&" (score= "&D138&")") -> Aggressive (score= ) | C138: =IF('Test Score Input'!G45="",40,'Test Score Input'!G45) -> 0 | D138: =IF('Test Score Input'!E45="","",'Test Score Input'!E45) -> 
B139: =IF('Test Score Input'!D46="","x",'Test Score Input'!D46&" (score= "&D139&")") -> x | C139: =IF('Test Score Input'!G46="",40,'Test Score Input'!G46) -> 40 | D139: =IF('Test Score Input'!E46="","",'Test Score Input'!E46) -> 
B140: =IF('Test Score Input'!D47="","x",'Test Score Input'!D47&" (score= "&D140&")") -> x | C140: =IF('Test Score Input'!G47="",40,'Test Score Input'!G47) -> 40 | D140: =IF('Test Score Input'!E47="","",'Test Score Input'!E47) -> 
B141: =IF('Test Score Input'!D48="","x",'Test Score Input'!D48&" (score= "&D141&")") -> x | C141: =IF('Test Score Input'!G48="",40,'Test Score Input'!G48) -> 40 | D141: =IF('Test Score Input'!E48="","",'Test Score Input'!E48) -> 
A148: 1 | B148: 3 | C148: 9 | D148: 22 | E148: 50 | F148: 68 | G148: 76 | H148: 68 | I148: 50 | J148: 22 | K148: 9 | L148: 3 | M148: 1
